[Event "Live Chess"]
[Site "Chess.com"]
[Date "2024.06.02"]
[Round "-"]
[White "e4evr"]
[Black "StoreySniper"]
[Result "0-1"]
[WhiteElo "2239"]
[BlackElo "2516"]
[TimeControl "300"]
[EndTime "18:27:27 PDT"]
[Termination "StoreySniper won by checkmate"]

1. h4 {[%clk 0:04:59.1]} 1... g6 {[%clk 0:04:58.2]} 2. f3 {[%clk 0:04:58.6]}
2... Bg7 {[%clk 0:04:57.6]} 3. Kf2 {[%clk 0:04:58]} 3... d5 {[%clk 0:04:56.7]}
4. c3 {[%clk 0:04:57.4]} 4... c5 {[%clk 0:04:56.2]} 5. d3 {[%clk 0:04:56.6]}
5... Nc6 {[%clk 0:04:55.7]} 6. Bf4 {[%clk 0:04:56]} 6... e5 {[%clk 0:04:54.5]}
7. Bh2 {[%clk 0:04:55.5]} 7... Qxh4+ {[%clk 0:04:50.7]} 8. g3 {[%clk 0:04:54.8]}
8... Qe7 {[%clk 0:04:49.5]} 9. Kg2 {[%clk 0:04:54]} 9... Nf6 {[%clk 0:04:48.2]}
10. Nd2 {[%clk 0:04:53.1]} 10... h5 {[%clk 0:04:46.9]} 11. Kf2 {[%clk
0:04:51.8]} 11... e4 {[%clk 0:04:43.3]} 12. Ke1 {[%clk 0:04:50.3]} 12... e3
{[%clk 0:04:40]} 13. Nb1 {[%clk 0:04:48.6]} 13... d4 {[%clk 0:04:38.5]} 14. c4
{[%clk 0:04:47.3]} 14... g5 {[%clk 0:04:24.9]} 15. Qa4 {[%clk 0:04:44.6]} 15...
Bd7 {[%clk 0:04:22.2]} 16. Qa3 {[%clk 0:04:43.4]} 16... Nb4 {[%clk 0:04:19.5]}
17. Kd1 {[%clk 0:04:42.3]} 17... h4 {[%clk 0:04:11]} 18. g4 {[%clk 0:04:41]}
18... Bc6 {[%clk 0:04:05.8]} 19. Bh3 {[%clk 0:04:39.4]} 19... Nd7 {[%clk
0:04:03.9]} 20. Qb3 {[%clk 0:04:29.8]} 20... Be5 {[%clk 0:04:00.6]} 21. Bxe5
{[%clk 0:04:28]} 21... Nxe5 {[%clk 0:03:56.4]} 22. a3 {[%clk 0:04:26.4]} 22...
Na6 {[%clk 0:03:40.8]} 23. Kc1 {[%clk 0:04:24.9]} 23... Ng6 {[%clk 0:03:36.8]}
24. Qd1 {[%clk 0:04:23.2]} 24... Nf4 {[%clk 0:03:35.2]} 25. Bf1 {[%clk
0:04:18.7]} 25... b5 {[%clk 0:03:27]} 26. cxb5 {[%clk 0:04:13.8]} 26... Bxb5
{[%clk 0:03:25.9]} 27. a4 {[%clk 0:04:11.6]} 27... Bc6 {[%clk 0:03:20.9]} 28.
Na3 {[%clk 0:04:10.4]} 28... Nb4 {[%clk 0:03:17.5]} 29. Nc4 {[%clk 0:04:05.5]}
29... O-O {[%clk 0:03:12.7]} 30. Nh3 {[%clk 0:04:03.2]} 30... Nxh3 {[%clk
0:03:08.9]} 31. Rxh3 {[%clk 0:04:01.9]} 31... Nd5 {[%clk 0:03:06.7]} 32. a5
{[%clk 0:03:55.6]} 32... Nf4 {[%clk 0:03:05.2]} 33. Rh2 {[%clk 0:03:50.7]} 33...
Bd5 {[%clk 0:02:58]} 34. Ra4 {[%clk 0:03:45]} 34... Rfb8 {[%clk 0:02:54.8]} 35.
Qc2 {[%clk 0:03:41.4]} 35... Rb7 {[%clk 0:02:48.9]} 36. Bh3 {[%clk 0:03:18.9]}
36... Rab8 {[%clk 0:02:45.5]} 37. Ra2 {[%clk 0:03:15.4]} 37... Rb4 {[%clk
0:02:38.6]} 38. Rh1 {[%clk 0:03:10.3]} 38... f6 {[%clk 0:02:31.4]} 39. Bf1
{[%clk 0:02:48.9]} 39... Kg7 {[%clk 0:02:29.3]} 40. Rg1 {[%clk 0:02:48.3]} 40...
Kh6 {[%clk 0:02:17.5]} 41. Bg2 {[%clk 0:02:47.5]} 41... Qh7 {[%clk 0:02:15.7]}
42. Ra4 {[%clk 0:02:31.1]} 42... Bxc4 {[%clk 0:02:07.3]} 43. Rxb4 {[%clk
0:02:28]} 43... Rxb4 {[%clk 0:02:06.3]} 44. dxc4 {[%clk 0:02:26.1]} 44... Qxc2+
{[%clk 0:02:05.2]} 45. Kxc2 {[%clk 0:02:26]} 45... Nxe2 {[%clk 0:02:01.3]} 46.
Ra1 {[%clk 0:02:19.4]} 46... Nf4 {[%clk 0:01:51.8]} 47. Bf1 {[%clk 0:02:18.5]}
47... e2 {[%clk 0:01:50.8]} 48. Bxe2 {[%clk 0:02:14.6]} 48... Nxe2 {[%clk
0:01:49.7]} 49. b3 {[%clk 0:02:13.9]} 49... Nf4 {[%clk 0:01:36.6]} 50. Re1
{[%clk 0:02:11]} 50... d3+ {[%clk 0:01:34.2]} 51. Kc3 {[%clk 0:02:09]} 51... h3
{[%clk 0:01:32.8]} 52. Re8 {[%clk 0:02:06]} 52... Ng6 {[%clk 0:01:26.7]} 53. Re1
{[%clk 0:02:04.2]} 53... Nf4 {[%clk 0:01:23.3]} 54. Re8 {[%clk 0:02:02.8]} 54...
a6 {[%clk 0:01:21]} 55. Re1 {[%clk 0:01:47.4]} 55... Rb8 {[%clk 0:01:17.8]} 56.
Rh1 {[%clk 0:01:44.4]} 56... Kg6 {[%clk 0:01:16.9]} 57. Rd1 {[%clk 0:01:41.4]}
57... Re8 {[%clk 0:01:15.9]} 58. b4 {[%clk 0:01:39.9]} 58... cxb4+ {[%clk
0:01:10.5]} 59. Kxb4 {[%clk 0:01:39.8]} 59... h2 {[%clk 0:01:07.6]} 60. Rh1
{[%clk 0:01:38.9]} 60... Re2 {[%clk 0:01:05.9]} 61. c5 {[%clk 0:01:38.8]} 61...
d2 {[%clk 0:01:04.8]} 62. c6 {[%clk 0:01:38]} 62... Re1 {[%clk 0:01:02.2]} 63.
Rxh2 {[%clk 0:01:34.8]} 63... d1=Q {[%clk 0:01:00.3]} 64. c7 {[%clk 0:01:34]}
64... Qd4+ {[%clk 0:00:56.1]} 65. Kb3 {[%clk 0:01:33.1]} 65... Re3+ {[%clk
0:00:52.3]} 66. Ka2 {[%clk 0:01:31.7]} 66... Qa4+ {[%clk 0:00:49.8]} 67. Kb2
{[%clk 0:01:30.8]} 67... Qb4+ {[%clk 0:00:47.3]} 68. Kc2 {[%clk 0:01:30.1]}
68... Qc3+ {[%clk 0:00:46.5]} 69. Kb1 {[%clk 0:01:28.9]} 69... Re1+ {[%clk
0:00:45.4]} 70. Ka2 {[%clk 0:01:28]} 70... Ra1# {[%clk 0:00:44.4]} 0-1

[Event "Live Chess"]
[Site "Chess.com"]
[Date "2024.06.02"]
[Round "-"]
[White "gobbles19"]
[Black "NAZRIZ1977"]
[Result "1-0"]
[WhiteElo "2298"]
[BlackElo "2110"]
[TimeControl "300"]
[EndTime "18:27:35 PDT"]
[Termination "gobbles19 won by resignation"]

1. Nf3 {[%clk 0:04:54.2]} 1... c5 {[%clk 0:04:58.1]} 2. e4 {[%clk 0:04:53.1]}
2... d6 {[%clk 0:04:56.9]} 3. d4 {[%clk 0:04:52.7]} 3... cxd4 {[%clk 0:04:56.8]}
4. c3 {[%clk 0:04:52.2]} 4... Nf6 {[%clk 0:04:55.3]} 5. Bd3 {[%clk 0:04:39.4]}
5... Nc6 {[%clk 0:04:48.6]} 6. cxd4 {[%clk 0:04:37.7]} 6... Bg4 {[%clk
0:04:47.3]} 7. Be3 {[%clk 0:04:35.1]} 7... d5 {[%clk 0:04:44.8]} 8. e5 {[%clk
0:04:30.8]} 8... Ne4 {[%clk 0:04:43.6]} 9. O-O {[%clk 0:04:28.8]} 9... e6 {[%clk
0:04:39.5]} 10. Nbd2 {[%clk 0:04:23.1]} 10... Nxd2 {[%clk 0:04:36.4]} 11. Qxd2
{[%clk 0:04:22.2]} 11... Bxf3 {[%clk 0:04:34.1]} 12. gxf3 {[%clk 0:04:22.1]}
12... Qh4 {[%clk 0:04:32.1]} 13. Kh1 {[%clk 0:04:07.5]} 13... Be7 {[%clk
0:04:23.9]} 14. Rg1 {[%clk 0:04:06.5]} 14... Kf8 {[%clk 0:04:19]} 15. Rg4 {[%clk
0:03:59.2]} 15... Qh3 {[%clk 0:04:16.6]} 16. Be2 {[%clk 0:03:51.4]} 16... h5
{[%clk 0:04:10.5]} 17. Rg3 {[%clk 0:03:50.6]} 17... Qh4 {[%clk 0:04:09.5]} 18.
Rag1 {[%clk 0:03:48]} 18... Rg8 {[%clk 0:03:53.3]} 19. f4 {[%clk 0:03:13.6]}
19... Rc8 {[%clk 0:03:44.1]} 20. Bf1 {[%clk 0:03:06.6]} 20... Bb4 {[%clk
0:03:38.5]} 21. Qe2 {[%clk 0:03:01.7]} 21... Nxd4 {[%clk 0:03:22.8]} 22. Bxd4
{[%clk 0:02:56.4]} 22... Qxf4 {[%clk 0:03:21.7]} 23. Qe3 {[%clk 0:02:52.1]}
23... Qxe3 {[%clk 0:03:10.5]} 24. Rxe3 {[%clk 0:02:52]} 24... Rc2 {[%clk
0:03:08.5]} 25. Rb3 {[%clk 0:02:49.5]} 25... Be1 {[%clk 0:03:01]} 26. Rxb7
{[%clk 0:02:40]} 1-0

[Event "Live Chess"]
[Site "Chess.com"]
[Date "2024.06.02"]
[Round "-"]
[White "Dhaydon19"]
[Black "Tushinskiy"]
[Result "1-0"]
[WhiteElo "2678"]
[BlackElo "2259"]
[TimeControl "300"]
[EndTime "18:27:37 PDT"]
[Termination "Dhaydon19 won by resignation"]

1. d4 {[%clk 0:04:57.2]} 1... d5 {[%clk 0:04:58.6]} 2. Nf3 {[%clk 0:04:56.9]}
2... c6 {[%clk 0:04:58.5]} 3. g3 {[%clk 0:04:56.4]} 3... Nf6 {[%clk 0:04:57.9]}
4. Bg2 {[%clk 0:04:56.1]} 4... Bg4 {[%clk 0:04:56.2]} 5. c3 {[%clk 0:04:55.5]}
5... Nbd7 {[%clk 0:04:55.5]} 6. Nbd2 {[%clk 0:04:55.2]} 6... e6 {[%clk
0:04:54.7]} 7. O-O {[%clk 0:04:54.6]} 7... Bd6 {[%clk 0:04:54.1]} 8. Re1 {[%clk
0:04:54.2]} 8... O-O {[%clk 0:04:53.2]} 9. e4 {[%clk 0:04:53.5]} 9... dxe4
{[%clk 0:04:53]} 10. Nxe4 {[%clk 0:04:53.1]} 10... Nxe4 {[%clk 0:04:52.9]} 11.
Rxe4 {[%clk 0:04:52.6]} 11... Bf5 {[%clk 0:04:52.3]} 12. Re1 {[%clk 0:04:51.9]}
12... Bg6 {[%clk 0:04:52.2]} 13. Qb3 {[%clk 0:04:50.9]} 13... Qc7 {[%clk
0:04:51.1]} 14. Nd2 {[%clk 0:04:50.6]} 14... Nb6 {[%clk 0:04:47.3]} 15. a4
{[%clk 0:04:47.4]} 15... a5 {[%clk 0:04:39.5]} 16. Ne4 {[%clk 0:04:44.7]} 16...
Be7 {[%clk 0:04:36.7]} 17. Bf4 {[%clk 0:04:42]} 17... Qd8 {[%clk 0:04:35.9]} 18.
Nc5 {[%clk 0:04:39.9]} 18... Bxc5 {[%clk 0:04:34.6]} 19. dxc5 {[%clk 0:04:37.6]}
19... Nd5 {[%clk 0:04:34]} 20. Bd6 {[%clk 0:04:34.2]} 20... Re8 {[%clk
0:04:29.9]} 21. Qxb7 {[%clk 0:04:33]} 21... h5 {[%clk 0:04:24.7]} 22. Qxc6
{[%clk 0:04:29.1]} 22... Rc8 {[%clk 0:04:24]} 23. Qb5 {[%clk 0:04:26.8]} 23...
h4 {[%clk 0:04:21.6]} 24. Bxd5 {[%clk 0:04:22.4]} 24... exd5 {[%clk 0:04:20.5]}
25. Rxe8+ {[%clk 0:04:21.9]} 25... Qxe8 {[%clk 0:04:20.4]} 26. Qxe8+ {[%clk
0:04:21.1]} 26... Rxe8 {[%clk 0:04:20.3]} 27. c6 {[%clk 0:04:19.4]} 27... hxg3
{[%clk 0:04:18.2]} 28. hxg3 {[%clk 0:04:15.8]} 28... Bf5 {[%clk 0:04:17.6]} 29.
c7 {[%clk 0:04:08.3]} 29... f6 {[%clk 0:04:15]} 30. b4 {[%clk 0:04:07.3]} 30...
Kf7 {[%clk 0:04:12.5]} 31. b5 {[%clk 0:04:02.8]} 31... Ke6 {[%clk 0:04:10.3]}
32. Bf4 {[%clk 0:03:56.4]} 32... Kd7 {[%clk 0:04:08.8]} 33. Rd1 {[%clk
0:03:54.5]} 33... Be6 {[%clk 0:04:04.2]} 34. c4 {[%clk 0:03:52.9]} 34... g5
{[%clk 0:04:02.6]} 35. cxd5 {[%clk 0:03:50.3]} 35... gxf4 {[%clk 0:04:01.3]} 36.
dxe6+ {[%clk 0:03:49]} 36... Kxc7 {[%clk 0:04:01.2]} 37. Rd7+ {[%clk 0:03:45.4]}
37... Kb6 {[%clk 0:03:58.2]} 38. e7 {[%clk 0:03:41.9]} 38... fxg3 {[%clk
0:03:56.1]} 39. fxg3 {[%clk 0:03:40.7]} 39... Kc5 {[%clk 0:03:53.5]} 40. Kf2
{[%clk 0:03:38.6]} 40... Kb4 {[%clk 0:03:52.7]} 41. b6 {[%clk 0:03:38]} 41...
Kxa4 {[%clk 0:03:51.8]} 42. b7 {[%clk 0:03:37.7]} 1-0

[Event "Live Chess"]
[Site "Chess.com"]
[Date "2024.06.02"]
[Round "-"]
[White "lyricalschemes"]
[Black "oscalik"]
[Result "1-0"]
[WhiteElo "2243"]
[BlackElo "2269"]
[TimeControl "300"]
[EndTime "18:28:00 PDT"]
[Termination "lyricalschemes won by resignation"]

1. e4 {[%clk 0:04:59.2]} 1... e5 {[%clk 0:04:57.6]} 2. Nc3 {[%clk 0:04:58.4]}
2... Nf6 {[%clk 0:04:55.7]} 3. f4 {[%clk 0:04:57.5]} 3... d5 {[%clk 0:04:54.1]}
4. fxe5 {[%clk 0:04:56.5]} 4... Nxe4 {[%clk 0:04:53.3]} 5. Qf3 {[%clk
0:04:55.8]} 5... Nxc3 {[%clk 0:04:48.5]} 6. dxc3 {[%clk 0:04:46.6]} 6... c5
{[%clk 0:04:34.7]} 7. Bb5+ {[%clk 0:04:43.3]} 7... Nc6 {[%clk 0:04:32.9]} 8. Qg3
{[%clk 0:04:42.1]} 8... Be6 {[%clk 0:04:25.3]} 9. Nf3 {[%clk 0:04:39.6]} 9... h6
{[%clk 0:04:22.7]} 10. O-O {[%clk 0:04:37.2]} 10... Qb6 {[%clk 0:04:20.7]} 11.
Bxc6+ {[%clk 0:04:33.9]} 11... Qxc6 {[%clk 0:04:19.9]} 12. Be3 {[%clk
0:04:26.2]} 12... O-O-O {[%clk 0:04:17.9]} 13. Rfd1 {[%clk 0:04:21.6]} 13... Be7
{[%clk 0:04:13.9]} 14. Qf2 {[%clk 0:04:17.2]} 14... f5 {[%clk 0:03:59.6]} 15.
exf6 {[%clk 0:04:13.5]} 15... gxf6 {[%clk 0:03:44.5]} 16. b4 {[%clk 0:04:11.3]}
16... cxb4 {[%clk 0:03:34.6]} 17. cxb4 {[%clk 0:04:07.9]} 17... Bxb4 {[%clk
0:03:25.7]} 18. Bxa7 {[%clk 0:03:48.4]} 18... Bc3 {[%clk 0:03:14]} 19. Rab1
{[%clk 0:03:44.9]} 19... Bg4 {[%clk 0:02:54.1]} 20. Rb6 {[%clk 0:03:26.5]} 20...
Qc4 {[%clk 0:02:41]} 21. Qg3 {[%clk 0:03:23.6]} 21... Bxf3 {[%clk 0:01:46.6]}
22. Qb8+ {[%clk 0:03:21.5]} 22... Kd7 {[%clk 0:01:45.9]} 23. Qxb7+ {[%clk
0:03:12.5]} 23... Ke8 {[%clk 0:01:25.2]} 24. Re6+ {[%clk 0:03:05.7]} 24... Kf8
{[%clk 0:01:17.7]} 25. Qe7+ {[%clk 0:03:04.5]} 25... Kg8 {[%clk 0:01:16.7]} 26.
Qxd8+ {[%clk 0:03:03.3]} 26... Kg7 {[%clk 0:01:16.2]} 27. Re7+ {[%clk
0:02:29.9]} 27... Kg6 {[%clk 0:01:15]} 28. Qxh8 {[%clk 0:02:24.9]} 28... Qe2
{[%clk 0:01:03.6]} 29. Rxe2 {[%clk 0:02:23]} 1-0

[Event "Live Chess"]
[Site "Chess.com"]
[Date "2024.06.02"]
[Round "-"]
[White "grillage"]
[Black "asingardenof"]
[Result "1-0"]
[WhiteElo "1864"]
[BlackElo "626"]
[TimeControl "300"]
[EndTime "18:28:46 PDT"]
[Termination "grillage won by resignation"]

1. d4 {[%clk 0:04:57]} 1... Nf6 {[%clk 0:04:57.9]} 2. Nf3 {[%clk 0:04:55.6]}
2... Nc6 {[%clk 0:04:55.5]} 3. d5 {[%clk 0:04:52.1]} 3... Nb4 {[%clk 0:04:50.4]}
4. c4 {[%clk 0:04:50.1]} 4... d6 {[%clk 0:04:46.9]} 5. Qa4+ {[%clk 0:04:47.3]}
5... Bd7 {[%clk 0:04:36.9]} 6. Qxb4 {[%clk 0:04:46.1]} 6... c5 {[%clk
0:04:30.6]} 7. Qb3 {[%clk 0:04:32.6]} 7... g6 {[%clk 0:04:27.1]} 8. Nc3 {[%clk
0:04:30.5]} 8... Bg7 {[%clk 0:04:25.6]} 9. e4 {[%clk 0:04:28.4]} 9... e5 {[%clk
0:04:21.7]} 10. dxe6 {[%clk 0:04:24.6]} 10... fxe6 {[%clk 0:04:19.7]} 11. Bg5
{[%clk 0:04:18.4]} 11... b6 {[%clk 0:04:09.2]} 12. Be2 {[%clk 0:04:16.8]} 12...
Bc6 {[%clk 0:04:00.8]} 13. Qc2 {[%clk 0:04:11.6]} 13... e5 {[%clk 0:03:54]} 14.
Nd5 {[%clk 0:04:08.5]} 14... Bxd5 {[%clk 0:03:50]} 15. cxd5 {[%clk 0:04:02.3]}
15... h6 {[%clk 0:03:48.5]} 16. Bb5+ {[%clk 0:04:00.1]} 16... Kf7 {[%clk
0:03:41.4]} 17. Bxf6 {[%clk 0:03:58.3]} 17... Bxf6 {[%clk 0:03:39.8]} 18. Bc6
{[%clk 0:03:55.9]} 18... Rb8 {[%clk 0:03:32.5]} 19. O-O {[%clk 0:03:48.5]} 19...
g5 {[%clk 0:03:17.2]} 20. Nd2 {[%clk 0:03:38.2]} 20... g4 {[%clk 0:03:10.7]} 21.
g3 {[%clk 0:03:34.6]} 21... h5 {[%clk 0:03:07.6]} 22. Nc4 {[%clk 0:03:22.4]}
22... Rh6 {[%clk 0:02:54.8]} 23. Ne3 {[%clk 0:03:20.8]} 23... Bg5 {[%clk
0:02:42.2]} 24. Nf5 {[%clk 0:03:19.1]} 24... Rf6 {[%clk 0:02:36.7]} 25. Qe2
{[%clk 0:03:14]} 25... Qc8 {[%clk 0:02:24.4]} 26. Rac1 {[%clk 0:03:00.1]} 26...
Bxc1 {[%clk 0:02:02.5]} 27. Rxc1 {[%clk 0:02:57.2]} 27... Qc7 {[%clk 0:01:43.2]}
28. Qe3 {[%clk 0:02:54.3]} 28... Rg6 {[%clk 0:01:31]} 29. Nh4 {[%clk 0:02:51.9]}
29... Rh6 {[%clk 0:01:15.2]} 30. Qxh6 {[%clk 0:02:49.8]} 1-0

[Event "Live Chess"]
[Site "Chess.com"]
[Date "2024.06.02"]
[Round "-"]
[White "Crowded_House"]
[Black "KeithArkell"]
[Result "0-1"]
[WhiteElo "1705"]
[BlackElo "2455"]
[TimeControl "300"]
[EndTime "18:28:51 PDT"]
[Termination "KeithArkell won by resignation"]

1. d4 {[%clk 0:04:57.3]} 1... e6 {[%clk 0:04:58.8]} 2. Nf3 {[%clk 0:04:55.2]}
2... Nf6 {[%clk 0:04:57.8]} 3. Bg5 {[%clk 0:04:54.5]} 3... c5 {[%clk 0:04:57]}
4. c3 {[%clk 0:04:52.3]} 4... cxd4 {[%clk 0:04:56.4]} 5. Nxd4 {[%clk 0:04:50.8]}
5... Nc6 {[%clk 0:04:54.5]} 6. Nxc6 {[%clk 0:04:48.3]} 6... bxc6 {[%clk
0:04:54]} 7. e3 {[%clk 0:04:45.8]} 7... Be7 {[%clk 0:04:53.3]} 8. Bd3 {[%clk
0:04:44.3]} 8... d5 {[%clk 0:04:52.5]} 9. O-O {[%clk 0:04:42.6]} 9... a5 {[%clk
0:04:52.1]} 10. Nd2 {[%clk 0:04:41.2]} 10... Ba6 {[%clk 0:04:51.7]} 11. Bxa6
{[%clk 0:04:38.9]} 11... Rxa6 {[%clk 0:04:51.6]} 12. Nf3 {[%clk 0:04:31.1]}
12... O-O {[%clk 0:04:48.6]} 13. Qd3 {[%clk 0:04:25.2]} 13... Rb6 {[%clk
0:04:44.8]} 14. b3 {[%clk 0:04:22.6]} 14... Ne4 {[%clk 0:04:43.9]} 15. Bxe7
{[%clk 0:04:20.5]} 15... Qxe7 {[%clk 0:04:43.8]} 16. Nd2 {[%clk 0:04:14.4]}
16... Nxd2 {[%clk 0:04:42.3]} 17. Qxd2 {[%clk 0:04:13.2]} 17... c5 {[%clk
0:04:41.7]} 18. Qc2 {[%clk 0:03:52.7]} 18... Rfb8 {[%clk 0:04:39.6]} 19. Rfd1
{[%clk 0:03:46.7]} 19... h6 {[%clk 0:04:38.4]} 20. c4 {[%clk 0:03:43.7]} 20...
Qd6 {[%clk 0:04:29.8]} 21. cxd5 {[%clk 0:03:39]} 21... exd5 {[%clk 0:04:28.7]}
22. Qd2 {[%clk 0:03:33.2]} 22... a4 {[%clk 0:04:21.7]} 23. bxa4 {[%clk 0:03:18]}
23... Rd8 {[%clk 0:04:13.5]} 24. Rab1 {[%clk 0:03:11.6]} 24... Rxb1 {[%clk
0:04:06.6]} 25. Rxb1 {[%clk 0:03:10.1]} 25... c4 {[%clk 0:04:06]} 26. Rb5 {[%clk
0:03:03.2]} 26... Qa3 {[%clk 0:04:01.7]} 27. h3 {[%clk 0:02:54.1]} 27... Qxa4
{[%clk 0:03:59.6]} 28. Rb2 {[%clk 0:02:37]} 28... Qc6 {[%clk 0:03:50.4]} 29. Kf1
{[%clk 0:02:29.9]} 29... c3 {[%clk 0:03:49.3]} 30. Qc2 {[%clk 0:02:24.6]} 30...
cxb2 {[%clk 0:03:47.5]} 31. Qxb2 {[%clk 0:02:22.9]} 31... Rc8 {[%clk 0:03:45.1]}
0-1

[Event "Live Chess"]
[Site "Chess.com"]
[Date "2024.06.02"]
[Round "-"]
[White "Frankie_Badacsonyi"]
[Black "WelshTiger"]
[Result "1/2-1/2"]
[WhiteElo "2410"]
[BlackElo "2445"]
[TimeControl "300"]
[EndTime "18:29:15 PDT"]
[Termination "Game drawn by repetition"]

1. Nf3 {[%clk 0:04:57.4]} 1... Nf6 {[%clk 0:04:53.6]} 2. b3 {[%clk 0:04:56.4]}
2... c5 {[%clk 0:04:48.2]} 3. Bb2 {[%clk 0:04:55.5]} 3... Nc6 {[%clk 0:04:46.6]}
4. e3 {[%clk 0:04:54.9]} 4... a6 {[%clk 0:04:45.3]} 5. d4 {[%clk 0:04:53.6]}
5... e6 {[%clk 0:04:43.8]} 6. Be2 {[%clk 0:04:52.5]} 6... d5 {[%clk 0:04:40.5]}
7. O-O {[%clk 0:04:51.6]} 7... Be7 {[%clk 0:04:33.4]} 8. Nbd2 {[%clk 0:04:50.2]}
8... O-O {[%clk 0:04:31.7]} 9. c4 {[%clk 0:04:49.2]} 9... cxd4 {[%clk
0:04:30.7]} 10. Nxd4 {[%clk 0:04:47.5]} 10... Bd7 {[%clk 0:04:26.7]} 11. cxd5
{[%clk 0:04:45.7]} 11... Nxd5 {[%clk 0:04:25.5]} 12. Nc4 {[%clk 0:04:38.9]}
12... Bf6 {[%clk 0:04:21.3]} 13. Bf3 {[%clk 0:04:34.8]} 13... Nxd4 {[%clk
0:04:12]} 14. Bxd4 {[%clk 0:04:33.2]} 14... Bc6 {[%clk 0:04:09.1]} 15. Rc1
{[%clk 0:04:23.8]} 15... Bxd4 {[%clk 0:03:54.8]} 16. Qxd4 {[%clk 0:04:23.7]}
16... Qf6 {[%clk 0:03:51.7]} 17. Qxf6 {[%clk 0:04:21]} 17... gxf6 {[%clk
0:03:51.6]} 18. Na5 {[%clk 0:04:12.8]} 18... Rac8 {[%clk 0:03:45.4]} 19. Nxc6
{[%clk 0:04:10.7]} 19... Rxc6 {[%clk 0:03:42.9]} 20. Bxd5 {[%clk 0:04:06.4]}
20... exd5 {[%clk 0:03:42.8]} 21. Rxc6 {[%clk 0:03:55.3]} 21... bxc6 {[%clk
0:03:41.5]} 22. Rc1 {[%clk 0:03:54.6]} 22... Rc8 {[%clk 0:03:38.1]} 23. Kf1
{[%clk 0:03:54]} 23... Kf8 {[%clk 0:03:37.5]} 24. Ke2 {[%clk 0:03:53.3]} 24...
Ke7 {[%clk 0:03:37]} 25. Kd3 {[%clk 0:03:52.5]} 25... Kd6 {[%clk 0:03:36.5]} 26.
b4 {[%clk 0:03:47.9]} 26... a5 {[%clk 0:03:32.3]} 27. b5 {[%clk 0:03:36.2]}
27... c5 {[%clk 0:03:30.6]} 28. a4 {[%clk 0:03:35.4]} 28... Re8 {[%clk
0:03:25.2]} 29. f3 {[%clk 0:03:30.6]} 29... f5 {[%clk 0:03:20.7]} 30. Rb1 {[%clk
0:03:27.6]} 30... Kc7 {[%clk 0:03:05.3]} 31. g3 {[%clk 0:03:09.3]} 31... h5
{[%clk 0:03:02.9]} 32. Rc1 {[%clk 0:02:50.5]} 32... Kd6 {[%clk 0:02:54.9]} 33.
Rb1 {[%clk 0:02:48.8]} 33... Kc7 {[%clk 0:02:52.8]} 34. Rc1 {[%clk 0:02:42.2]}
34... Kd6 {[%clk 0:02:36.9]} 35. Rb1 {[%clk 0:02:40.7]} 35... Kc7 {[%clk
0:02:34.7]} 1/2-1/2

[Event "Live Chess"]
[Site "Chess.com"]
[Date "2024.06.02"]
[Round "-"]
[White "Duke_of_Bebington"]
[Black "CarmelJane"]
[Result "1-0"]
[WhiteElo "1662"]
[BlackElo "2032"]
[TimeControl "300"]
[EndTime "18:29:22 PDT"]
[Termination "Duke_of_Bebington won by resignation"]

1. e4 {[%clk 0:04:57.7]} 1... c5 {[%clk 0:04:58.5]} 2. Nf3 {[%clk 0:04:54.5]}
2... e6 {[%clk 0:04:57.8]} 3. d4 {[%clk 0:04:53.5]} 3... cxd4 {[%clk 0:04:57.7]}
4. Nxd4 {[%clk 0:04:52.4]} 4... Nf6 {[%clk 0:04:57]} 5. Nc3 {[%clk 0:04:50]}
5... Nc6 {[%clk 0:04:56.1]} 6. Be3 {[%clk 0:04:48.9]} 6... Bb4 {[%clk
0:04:52.9]} 7. a3 {[%clk 0:04:40.7]} 7... Bxc3+ {[%clk 0:04:48.3]} 8. bxc3
{[%clk 0:04:39.5]} 8... Nxe4 {[%clk 0:04:47]} 9. Nb5 {[%clk 0:04:34.2]} 9... d5
{[%clk 0:04:40.6]} 10. Bd3 {[%clk 0:04:24.3]} 10... Nf6 {[%clk 0:04:16.3]} 11.
O-O {[%clk 0:04:17]} 11... e5 {[%clk 0:04:05.3]} 12. Bc5 {[%clk 0:04:11.4]}
12... Bg4 {[%clk 0:03:46.4]} 13. f3 {[%clk 0:04:07.8]} 13... Bh5 {[%clk
0:03:44.2]} 14. Nd6+ {[%clk 0:04:05.3]} 14... Kd7 {[%clk 0:03:42.9]} 15. Bf5+
{[%clk 0:03:57.5]} 15... Kc7 {[%clk 0:03:40]} 16. Nb5+ {[%clk 0:03:52]} 16...
Kb8 {[%clk 0:03:33.8]} 17. Bd6+ {[%clk 0:03:49.9]} 17... Qxd6 {[%clk 0:03:33.3]}
18. Nxd6 {[%clk 0:03:49.3]} 18... Kc7 {[%clk 0:03:31.9]} 19. Nb5+ {[%clk
0:03:45.9]} 19... Kb8 {[%clk 0:03:26.9]} 20. c4 {[%clk 0:03:41.2]} 20... d4
{[%clk 0:03:16.5]} 21. Qe2 {[%clk 0:03:19.6]} 21... a6 {[%clk 0:03:11.8]} 22.
Nd6 {[%clk 0:03:17]} 22... Rd8 {[%clk 0:03:03.6]} 23. Ne4 {[%clk 0:03:14.3]}
23... Nxe4 {[%clk 0:02:53.1]} 24. Bxe4 {[%clk 0:03:11.1]} 24... Rf8 {[%clk
0:02:51]} 25. Bxc6 {[%clk 0:03:06.5]} 25... bxc6 {[%clk 0:02:50.9]} 26. Qxe5+
{[%clk 0:03:04.6]} 26... Ka7 {[%clk 0:02:49.7]} 27. Qxh5 {[%clk 0:03:03]} 1-0